bitfinex/quotes_BTCUSD_20250615
["timestamp","ask_amount","ask_price","bid_price","bid_amount"]
[1750030771666,5.35190783,105710.0,105700.0,0.035]
[1750030771919,5.36079156,105710.0,105700.0,0.035]
[1750030772124,5.45694078,105710.0,105700.0,0.035]
[1750030772378,5.44805705,105710.0,105700.0,0.035]
[1750030773079,5.45694082,105710.0,105700.0,0.035]
[1750030773367,5.44805709,105710.0,105700.0,0.035]
[1750030773624,5.45694088,105710.0,105700.0,0.035]
[1750030773868,5.44805709,105710.0,105700.0,0.035]
[1750030774086,5.45027804,105710.0,105700.0,0.035]
[1750030774341,5.45022549,105710.0,105700.0,0.035]
[1750030774559,5.45022546,105710.0,105700.0,0.035]
[1750030774843,5.45022545,105710.0,105700.0,0.035]
[1750030775068,5.44139425,105710.0,105700.0,0.035]
[1750030775296,5.45022545,105710.0,105700.0,0.035]
[1750030775525,5.45022544,105710.0,105700.0,0.035]
[1750030775752,5.45022545,105710.0,105700.0,0.035]
[1750030775943,5.44139425,105710.0,105700.0,0.035]
[1750030776396,5.45022544,105710.0,105700.0,0.035]
[1750030776634,5.44139425,105710.0,105700.0,0.035]
[1750030776857,5.45022544,105710.0,105700.0,0.035]
[1750030777300,5.45022545,105710.0,105700.0,0.035]
[1750030778124,5.44139425,105710.0,105700.0,0.035]
[1750030779312,5.45022545,105710.0,105700.0,0.035]
[1750030779991,5.44139425,105710.0,105700.0,0.035]
[1750030780429,5.45022545,105710.0,105700.0,0.035]
[1750030780885,5.44139425,105710.0,105700.0,0.035]
[1750030781338,5.45022541,105710.0,105700.0,0.035]
[1750030781557,5.45694074,105710.0,105700.0,0.035]
[1750030781780,5.44805703,105710.0,105700.0,0.035]
[1750030782241,5.45694074,105710.0,105700.0,0.035]
[1750030782507,5.45027798,105710.0,105700.0,0.035]
[1750030782736,5.45694079,105710.0,105700.0,0.035]
[1750030783350,5.44805705,105710.0,105700.0,0.035]
[1750030783601,5.44805706,105710.0,105700.0,0.035]
[1750030783834,5.45694079,105710.0,105700.0,0.035]
[1750030784313,5.4569408,105710.0,105700.0,0.035]
[1750030785017,5.45694079,105710.0,105700.0,0.035]
[1750030785230,5.45694077,105710.0,105700.0,0.035]
[1750030785448,5.44139425,105710.0,105700.0,0.035]
[1750030785659,5.45694078,105710.0,105700.0,0.035]
[1750030785873,5.45027796,105710.0,105700.0,0.035]
[1750030786105,5.45694074,105710.0,105700.0,0.035]
[1750030786659,5.44805705,105710.0,105700.0,0.035]
[1750030786926,5.50647507,105710.0,105700.0,0.035]
[1750030787187,5.50647516,105710.0,105700.0,0.035]
[1750030787697,5.49759133,105710.0,105700.0,0.035]
[1750030788449,5.50647516,105710.0,105700.0,0.035]
[1750030788708,5.50647509,105710.0,105700.0,0.035]
[1750030788962,5.45715679,105710.0,105700.0,0.035]
[1750030789206,5.45049395,105710.0,105700.0,0.035]
[1750030789709,5.448273,105710.0,105700.0,0.035]
[1750030789975,5.45715679,105710.0,105700.0,0.035]
[1750030790303,5.45049394,105710.0,105700.0,0.035]
[1750030790811,5.448273,105710.0,105700.0,0.035]
[1750030791032,5.45049394,105710.0,105700.0,0.035]
[1750030791254,5.45049392,105710.0,105700.0,0.035]
[1750030791511,5.45715674,105710.0,105700.0,0.035]
[1750030791761,5.44161016,105710.0,105700.0,0.035]
[1750030791989,5.45715676,105710.0,105700.0,0.035]
[1750030792213,5.45715677,105710.0,105700.0,0.035]
[1750030792449,5.44827298,105710.0,105700.0,0.035]
[1750030792690,5.45049394,105710.0,105700.0,0.035]
[1750030792931,5.44827299,105710.0,105700.0,0.035]
[1750030793156,5.45715677,105710.0,105700.0,0.035]
[1750030793372,5.45049394,105710.0,105700.0,0.035]
[1750030793827,5.44161016,105710.0,105700.0,0.035]
[1750030794079,5.44827299,105710.0,105700.0,0.035]
[1750030794507,5.448273,105710.0,105700.0,0.035]
[1750030794723,5.45715679,105710.0,105700.0,0.035]
[1750030794942,5.45049394,105710.0,105700.0,0.035]
[1750030795125,5.45715677,105710.0,105700.0,0.035]
[1750030795542,5.45715678,105710.0,105700.0,0.035]
[1750030795743,5.45715679,105710.0,105700.0,0.035]
[1750030796416,5.45715678,105710.0,105700.0,0.035]
[1750030796603,5.17170272,105710.0,105700.0,0.035]
[1750030796804,5.17836554,105710.0,105700.0,0.035]
[1750030797025,5.17836553,105710.0,105700.0,0.035]
[1750030797227,5.1783655,105710.0,105700.0,0.035]
[1750030797434,5.17170271,105710.0,105700.0,0.035]
[1750030797877,5.17836554,105710.0,105700.0,0.035]
[1750030798092,5.16948176,105710.0,105700.0,0.035]
[1750030798303,5.1783655,105710.0,105700.0,0.035]
[1750030798528,5.17836547,105710.0,105700.0,0.035]
[1750030798774,5.17836541,105710.0,105700.0,0.035]
[1750030799010,5.16948167,105710.0,105700.0,0.035]
[1750030799228,5.17836534,105710.0,105700.0,0.035]
[1750030799445,5.16281894,105710.0,105700.0,0.035]
[1750030799662,5.1717026,105710.0,105700.0,0.035]
[1750030799912,4.78380042,105710.0,105700.0,0.035]
[1750030800145,5.16948166,105710.0,105700.0,0.035]
[1750030800366,5.17836528,105710.0,105700.0,0.035]
[1750030800584,5.26785178,105710.0,105700.0,0.035]
[1750030800806,5.26563087,105710.0,105700.0,0.035]
[1750030801037,5.27451461,105710.0,105700.0,0.035]
[1750030801266,5.25896816,105710.0,105700.0,0.035]
[1750030801526,5.27451456,105710.0,105700.0,0.035]
[1750030801960,5.28617565,105710.0,105700.0,0.035]
[1750030802182,5.29283874,105710.0,105700.0,0.035]
[1750030802388,5.29283874,105710.0,105700.0,0.0186]
[1750030802389,5.30172303,105710.0,105700.0,0.0186]
[1750030802596,5.29283874,105710.0,105700.0,0.0176]
[1750030802821,5.32128688,105710.0,105700.0,0.0156]
[1750030803017,5.55396548,105710.0,105700.0,0.0156]
[1750030803260,5.54730224,105710.0,105700.0,0.0156]
[1750030803477,5.54508117,105710.0,105700.0,0.0156]
[1750030803690,5.55396549,105710.0,105700.0,0.0156]
[1750030803906,5.55396544,105710.0,105700.0,0.0156]
[1750030804135,5.54730224,105710.0,105700.0,0.0156]
[1750030804349,5.55396558,105710.0,105700.0,0.0156]
[1750030804556,5.54508121,105710.0,105700.0,0.0156]
[1750030804774,5.55396562,105710.0,105700.0,0.0156]
[1750030805017,5.55396562,105710.0,105700.0,0.0308]
[1750030805221,5.53841792,105710.0,105700.0,0.0308]
[1750030805720,5.54730239,105710.0,105700.0,0.0308]
[1750030805959,5.55396576,105710.0,105700.0,0.0308]
[1750030806179,5.5539659,105710.0,105700.0,0.0308]
[1750030806393,5.54730248,105710.0,105700.0,0.0308]
[1750030806610,5.56678955,105710.0,105700.0,0.0308]
[1750030806842,5.57567409,105710.0,105700.0,0.0308]
[1750030807068,5.58233743,105710.0,105700.0,0.0308]
[1750030807282,5.57345293,105710.0,105700.0,0.0308]
[1750030807516,5.58233751,105710.0,105700.0,0.0308]
[1750030807754,5.5756741,105710.0,105700.0,0.0308]
[1750030807985,5.57345296,105710.0,105700.0,0.0308]
[1750030808211,5.56678955,105710.0,105700.0,0.0308]
[1750030808451,5.57567411,105710.0,105700.0,0.0308]
[1750030808697,5.58233754,105710.0,105700.0,0.0308]
[1750030808937,5.62502412,105710.0,105700.0,0.0308]
[1750030809184,5.63168755,105710.0,105700.0,0.0308]
[1750030809405,5.62502412,105710.0,105700.0,0.0308]
[1750030809629,5.62280301,105710.0,105700.0,0.0308]
[1750030809850,5.6316875,105710.0,105700.0,0.0308]
[1750030810071,5.63168767,105710.0,105700.0,0.0308]
[1750030810289,5.62502418,105710.0,105700.0,0.0308]
[1750030810545,5.62502421,105710.0,105700.0,0.0308]
[1750030810765,5.62502419,105710.0,105700.0,0.0308]
[1750030810984,5.63168768,105710.0,105700.0,0.0308]
[1750030811210,4.428254,105690.0,105670.0,0.41454936]
[1750030811449,4.428254,105690.0,105670.0,0.07558936]
[1750030811450,0.44391494,105680.0,105670.0,0.07558936]
[1750030812402,0.44391494,105680.0,105670.0,0.07758936]
[1750030812635,0.44391494,105680.0,105670.0,0.08358936]
[1750030813149,4.428254,105690.0,105670.0,0.08358936]
[1750030813369,4.428254,105680.0,105670.0,0.08358936]
[1750030813594,4.428254,105680.0,105670.0,0.08158936]
[1750030813811,0.02858572,105680.0,105670.0,0.08158936]
[1750030814043,0.02858572,105680.0,105670.0,0.07958936]
[1750030814270,5.22103538,105690.0,105680.0,0.0316]
[1750030814510,5.3171846,105690.0,105680.0,0.0316]
[1750030815009,5.30831816,105690.0,105680.0,0.0316]
[1750030815238,5.3171846,105690.0,105680.0,0.0316]
[1750030815460,5.31718462,105690.0,105680.0,0.0336]
[1750030815706,5.30831816,105690.0,105680.0,0.0346]
[1750030815950,5.31718463,105690.0,105680.0,0.0346]
[1750030816627,5.7522331,105690.0,105680.0,0.0346]
[1750030817312,5.30831816,105690.0,105680.0,0.0346]
[1750030817793,5.31718456,105690.0,105680.0,0.0346]
[1750030818035,5.30831816,105690.0,105680.0,0.0346]
[1750030818286,5.22103538,105690.0,105680.0,0.0346]
[1750030818496,4.87216894,105690.0,105680.0,0.0346]
[1750030818905,4.88103537,105690.0,105680.0,0.0346]
[1750030819330,4.87216894,105690.0,105680.0,0.0346]
[1750030819844,4.88103538,105690.0,105680.0,0.0346]
[1750030820057,4.87216894,105690.0,105680.0,0.0346]
[1750030820281,4.8810354,105690.0,105680.0,0.0346]
[1750030820495,5.31608388,105690.0,105680.0,0.0346]
[1750030821189,5.4122331,105690.0,105680.0,0.0346]
[1750030821408,5.42109958,105690.0,105680.0,0.0346]
[1750030821627,5.4122331,105690.0,105680.0,0.0346]
[1750030821844,5.42109958,105690.0,105680.0,0.0346]
[1750030822057,5.4122331,105690.0,105680.0,0.0346]
[1750030822255,5.42109958,105690.0,105680.0,0.0346]
[1750030822478,5.7522331,105690.0,105680.0,0.0346]
[1750030822700,5.76109955,105690.0,105680.0,0.0346]
[1750030822914,5.66495033,105690.0,105680.0,0.0346]
[1750030823139,5.65608388,105690.0,105680.0,0.0346]
[1750030823597,5.66495032,105690.0,105680.0,0.0346]
[1750030824035,5.65608388,105690.0,105680.0,0.0346]
[1750030824471,5.76109963,105690.0,105680.0,0.0346]
[1750030824969,5.76109964,105690.0,105680.0,0.0346]
[1750030825192,5.76109962,105690.0,105680.0,0.0346]
[1750030825639,5.76109966,105690.0,105680.0,0.0346]
[1750030826083,5.76109964,105690.0,105680.0,0.0346]
[1750030826297,5.7522331,105690.0,105680.0,0.0346]
[1750030826513,5.76109965,105690.0,105680.0,0.0346]
[1750030826733,5.76109964,105690.0,105680.0,0.0346]
[1750030827183,5.7522331,105690.0,105680.0,0.0346]
[1750030827400,5.76109969,105690.0,105680.0,0.0346]
[1750030827621,5.76109979,105690.0,105680.0,0.0346]
[1750030828080,5.76110029,105690.0,105680.0,0.0346]
[1750030828297,5.76110029,105690.0,105680.0,0.003]
[1750030828298,5.88581374,105690.0,105680.0,0.003]
[1750030828427,5.90701909,105690.0,105680.0,0.003]
[1750030828656,6.09297909,105690.0,105680.0,0.003]
[1750030828871,6.01658815,105690.0,105680.0,0.003]
[1750030829071,6.10493694,105690.0,105680.0,0.003]
[1750030829273,6.06716313,105690.0,105680.0,0.003]
[1750030829485,6.10493685,105690.0,105680.0,0.003]
[1750030829696,6.12048885,105690.0,105680.0,0.003]
[1750030830096,6.14769634,105690.0,105680.0,0.002]
[1750030830292,4.428254,105670.0,105660.0,0.0321]
[1750030830505,5.20461785,105670.0,105660.0,0.03214717]
[1750030830903,5.19573099,105670.0,105660.0,0.03214717]
[1750030831120,5.18906584,105670.0,105660.0,0.03214717]
[1750030831318,5.19573099,105670.0,105660.0,0.03214717]
[1750030831532,5.20461785,105670.0,105660.0,0.03214717]
[1750030831757,5.18906584,105670.0,105660.0,0.03214717]
[1750030831980,5.20461785,105670.0,105660.0,0.03214717]
[1750030832206,5.19573099,105670.0,105660.0,0.03314717]
[1750030832421,5.20461785,105670.0,105660.0,0.03314717]
[1750030832872,5.16311988,105670.0,105660.0,0.03314717]
[1750030833096,5.16978503,105670.0,105660.0,0.03514717]
[1750030833302,5.17200682,105670.0,105660.0,0.03514717]
[1750030833527,5.17867207,105670.0,105660.0,0.03514717]
[1750030833760,5.26815612,105670.0,105660.0,0.03514717]
[1750030833975,5.27482142,105670.0,105660.0,0.03514717]
[1750030834191,5.26593438,105670.0,105660.0,0.03514717]
[1750030834412,5.26815616,105670.0,105660.0,0.03514717]
[1750030834630,5.26593439,105670.0,105660.0,0.03514717]
[1750030835298,5.27482138,105670.0,105660.0,0.03514717]
[1750030835511,5.26815612,105670.0,105660.0,0.03514717]
[1750030835734,5.27482138,105670.0,105660.0,0.03514717]
[1750030835936,5.2592691,105670.0,105660.0,0.03514717]
[1750030839427,5.16311988,105670.0,105660.0,0.03514717]
[1750030839869,4.768254,105670.0,105660.0,0.03514717]
[1750030840113,5.16311988,105670.0,105660.0,0.03514717]
[1750030841203,5.16978511,105670.0,105660.0,0.03514717]
[1750030841432,4.7838062,105670.0,105660.0,0.03514717]
[1750030841655,0.34888693,105670.0,105660.0,0.03514717]
[1750030841887,4.43713992,105670.0,105660.0,0.13138893]
[1750030842115,0.02829723,105680.0,105660.0,0.65132076]
[1750030842342,0.37733814,105690.0,105660.0,0.25408893]
[1750030842559,4.428254,105680.0,105660.0,0.25408893]
[1750030842801,4.428254,105680.0,105670.0,0.0322]
[1750030843023,0.0088852,105680.0,105670.0,0.0322]
[1750030843242,5.17866899,105690.0,105680.0,0.0322]
[1750030843457,5.16311988,105690.0,105680.0,0.0322]
[1750030843938,5.17200511,105690.0,105680.0,0.0322]
[1750030844122,5.16978379,105690.0,105680.0,0.0322]
[1750030844327,5.18066901,105690.0,105680.0,0.0322]
[1750030844546,5.18066902,105690.0,105680.0,0.0322]
[1750030844752,5.1717838,105690.0,105680.0,0.0322]
[1750030844982,5.18266905,105690.0,105680.0,0.0322]
[1750030845204,5.17378381,105690.0,105680.0,0.0322]
[1750030845411,5.17378384,105690.0,105680.0,0.0322]
[1750030845626,5.18266913,105690.0,105680.0,0.0322]
[1750030845844,5.16711988,105690.0,105680.0,0.0322]
[1750030846056,5.20253619,105690.0,105680.0,0.0322]
[1750030846281,5.21142148,105690.0,105680.0,0.0322]
[1750030846494,5.21142149,105690.0,105680.0,0.0322]
[1750030846714,5.20475752,105690.0,105680.0,0.0322]
[1750030846941,5.29202144,105690.0,105670.0,0.0308]
[1750030847160,0.39486588,105680.0,105670.0,0.0308]
[1750030847377,0.40375158,105680.0,105670.0,0.0308]
[1750030847611,0.40375151,105680.0,105670.0,0.0308]
[1750030847860,0.49990073,105680.0,105670.0,0.0308]
[1750030848295,0.49990074,105680.0,105670.0,0.0308]
[1750030848513,0.49990076,105680.0,105670.0,0.0308]
[1750030848728,0.49990078,105680.0,105670.0,0.0308]
[1750030848942,0.4910151,105680.0,105670.0,0.0308]
[1750030849151,4.9192691,105680.0,105670.0,0.0308]
[1750030849368,4.93481986,105680.0,105670.0,0.0308]
[1750030849589,4.92593368,105680.0,105670.0,0.0308]
[1750030849812,4.4371401,105680.0,105670.0,0.0308]
[1750030850036,0.0088861,105680.0,105670.0,0.0308]
[1750030850257,4.43713939,105680.0,105670.0,0.0315]
[1750030850526,0.00888527,105680.0,105670.0,0.0315]
[1750030850959,0.00888525,105680.0,105670.0,0.0315]
[1750030851187,0.00888527,105680.0,105670.0,0.0315]
[1750030851451,0.42361822,105690.0,105670.0,0.031]
[1750030851724,5.04048022,105690.0,105680.0,0.031]
[1750030851924,5.05602941,105690.0,105680.0,0.031]
[1750030852127,5.05602943,105690.0,105680.0,0.031]
[1750030852561,5.05136547,105690.0,105680.0,0.031]
[1750030852776,5.05802941,105690.0,105680.0,0.031]
[1750030853014,5.04914415,105690.0,105680.0,0.031]
[1750030853233,5.05802939,105690.0,105680.0,0.031]
[1750030853447,5.05114415,105690.0,105680.0,0.031]
[1750030853658,5.05536546,105690.0,105680.0,0.031]
[1750030853872,5.06202939,105690.0,105680.0,0.031]
[1750030854091,5.04648022,105690.0,105680.0,0.031]
[1750030854295,5.06202939,105690.0,105680.0,0.031]
[1750030855157,5.15817863,105690.0,105680.0,0.031]
[1750030855358,5.15817866,105690.0,105680.0,0.031]
[1750030855589,5.15151471,105690.0,105680.0,0.031]
[1750030855812,5.15817865,105690.0,105680.0,0.031]
[1750030856239,5.14929339,105690.0,105680.0,0.031]
[1750030856470,5.15817866,105690.0,105680.0,0.031]
[1750030857162,5.06202944,105690.0,105680.0,0.031]
[1750030857376,5.05536547,105690.0,105680.0,0.031]
[1750030857594,5.04648022,105690.0,105680.0,0.031]
[1750030857811,5.06202941,105690.0,105680.0,0.031]
[1750030858016,5.04648022,105690.0,105680.0,0.031]
[1750030858234,5.05314416,105690.0,105680.0,0.031]
[1750030858468,4.66716354,105690.0,105680.0,0.031]
[1750030858714,4.66049913,105690.0,105680.0,0.031]
[1750030859172,0.01488479,105690.0,105680.0,0.1379007]
[1750030859424,0.00888397,105690.0,105680.0,0.12724176]
[1750030859637,4.276862,105700.0,105690.0,0.0161]
[1750030859857,4.616862,105700.0,105690.0,0.0161]
[1750030860108,4.62574588,105700.0,105690.0,0.0161]
[1750030860340,4.62574588,105700.0,105690.0,0.0325]
[1750030860557,0.34888388,105700.0,105690.0,0.0325]
[1750030860783,0.74374973,105700.0,105690.0,0.0325]
[1750030861003,0.73486588,105700.0,105690.0,0.0325]
[1750030863602,0.76262028,105700.0,105690.0,0.0325]
[1750030865091,0.83888231,105700.0,105690.0,0.0325]
[1750030865336,0.76262028,105700.0,105690.0,0.0325]
[1750030866652,0.77150425,105700.0,105690.0,0.0325]
[1750030866920,0.7715043,105700.0,105690.0,0.0325]
[1750030867205,0.76262028,105700.0,105690.0,0.0325]
[1750030867612,0.77150425,105700.0,105690.0,0.0325]
[1750030867826,0.76262028,105700.0,105690.0,0.0325]
[1750030868045,0.77150419,105700.0,105690.0,0.0325]
[1750030868269,0.77150418,105700.0,105690.0,0.0325]
[1750030868722,0.77150402,105700.0,105690.0,0.0325]
[1750030868933,0.77150404,105700.0,105690.0,0.0325]
[1750030869589,0.77150398,105700.0,105690.0,0.0325]
[1750030869830,0.76262028,105700.0,105690.0,0.0325]
[1750030870027,0.77150396,105700.0,105690.0,0.0325]
[1750030870469,0.37663808,105700.0,105690.0,0.06489018]
[1750030870688,0.37663808,105700.0,105690.0,0.0325]
[1750030870903,0.37663795,105700.0,105690.0,0.0325]
[1750030871131,0.3677544,105700.0,105690.0,0.0325]
[1750030871342,0.37663791,105700.0,105690.0,0.0325]
[1750030871559,0.03663789,105700.0,105690.0,0.0325]
[1750030871764,0.0366378,105700.0,105690.0,0.0325]
[1750030872184,0.0277544,105700.0,105690.0,0.0325]
[1750030872628,0.00888342,105700.0,105690.0,0.0314]
[1750030872856,0.00888334,105700.0,105690.0,0.03238618]
[1750030873065,0.00888327,105700.0,105680.0,0.29136176]
[1750030873497,0.39486588,105710.0,105690.0,0.0331]
[1750030873724,4.276862,105700.0,105690.0,0.0305]
[1750030873936,4.28574512,105700.0,105690.0,0.0305]
[1750030874156,0.00888312,105700.0,105690.0,0.0305]
[1750030874366,4.2857451,105700.0,105690.0,0.0305]
[1750030874582,4.276862,105700.0,105690.0,0.0318]
[1750030875113,4.2857451,105700.0,105690.0,0.0318]
[1750030875365,0.00888311,105700.0,105690.0,0.0318]
[1750030875821,0.00888311,105700.0,105690.0,0.1866]
[1750030876036,4.2857452,105700.0,105690.0,0.1866]
[1750030876253,4.276862,105700.0,105690.0,0.1866]
[1750030876469,4.3053891,105700.0,105690.0,0.0318]
[1750030876704,0.0285271,105700.0,105690.0,0.0318]
[1750030877154,0.73486588,105710.0,105700.0,0.0318]
[1750030877377,5.02727344,105710.0,105700.0,0.0318]
[1750030877597,5.02727351,105710.0,105700.0,0.0318]
[1750030877820,5.01839028,105710.0,105700.0,0.0318]
[1750030878066,5.02727348,105710.0,105700.0,0.0318]
[1750030878278,5.03127344,105710.0,105700.0,0.0318]
[1750030878712,5.02239033,105710.0,105700.0,0.0318]
[1750030879010,5.03127351,105710.0,105700.0,0.0318]
[1750030879232,5.02461109,105710.0,105700.0,0.0318]
[1750030879447,5.01572788,105710.0,105700.0,0.0318]
[1750030879671,5.03127351,105710.0,105700.0,0.0318]
[1750030879901,5.03127349,105710.0,105700.0,0.0318]
[1750030880156,5.03127341,105710.0,105700.0,0.0318]
[1750030880407,5.02239025,105710.0,105700.0,0.0318]
[1750030880683,5.03127346,105710.0,105700.0,0.0318]
[1750030880944,5.03127365,105710.0,105700.0,0.0318]
[1750030881206,5.05019486,105710.0,105700.0,0.0318]
[1750030881701,5.0524157,105710.0,105700.0,0.0318]
[1750030881924,5.14634419,105710.0,105700.0,0.0318]
[1750030882136,5.15522765,105710.0,105700.0,0.0318]
[1750030882358,5.13968156,105710.0,105700.0,0.0318]
[1750030882580,5.14856503,105710.0,105700.0,0.0318]
[1750030882850,5.14634419,105710.0,105700.0,0.0318]
[1750030883056,5.1552277,105710.0,105700.0,0.0318]
[1750030883274,5.13968156,105710.0,105700.0,0.0318]
[1750030883488,5.14634416,105710.0,105700.0,0.0318]
[1750030883947,5.15522762,105710.0,105700.0,0.0318]
[1750030884401,5.14856502,105710.0,105700.0,0.0318]
[1750030884616,5.15522762,105710.0,105700.0,0.0318]
[1750030884831,5.13968156,105710.0,105700.0,0.0318]
[1750030885074,5.15522753,105710.0,105700.0,0.0318]
[1750030885280,5.14856491,105710.0,105700.0,0.0318]
[1750030885490,5.05907813,105710.0,105700.0,0.0318]
[1750030885755,5.05241565,105710.0,105700.0,0.0318]
[1750030885975,5.05019482,105710.0,105700.0,0.0318]
[1750030886197,5.05907815,105710.0,105700.0,0.0318]
[1750030886411,5.05907824,105710.0,105700.0,0.0318]
[1750030886675,5.05019488,105710.0,105700.0,0.0318]
[1750030886887,5.0590782,105710.0,105700.0,0.0318]
[1750030887327,5.0501949,105710.0,105700.0,0.0318]
[1750030887545,5.05907829,105710.0,105700.0,0.0318]
[1750030887755,5.05019489,105710.0,105700.0,0.0318]
[1750030888010,5.0524157,105710.0,105700.0,0.0318]
[1750030888251,5.05019483,105710.0,105700.0,0.0318]
[1750030888493,5.05907819,105710.0,105700.0,0.0318]
[1750030888734,5.04353234,105710.0,105700.0,0.0318]
[1750030889197,5.05240552,105710.0,105700.0,0.0318]
[1750030889377,5.04353234,105710.0,105700.0,0.0318]
[1750030889835,5.05240552,105710.0,105700.0,0.0318]
[1750030890048,5.05240551,105710.0,105700.0,0.0318]
[1750030890266,5.04353234,105710.0,105700.0,0.0318]
[1750030890946,5.05240552,105710.0,105700.0,0.0318]
[1750030891158,5.05907822,105710.0,105700.0,0.0318]
[1750030891393,5.06681583,105710.0,105700.0,0.0318]
[1750030891619,5.08236194,105710.0,105700.0,0.0318]
[1750030891838,5.08236181,105710.0,105700.0,0.0318]
[1750030892056,5.0756993,105710.0,105700.0,0.0318]
[1750030892321,5.07347838,105710.0,105700.0,0.0318]
[1750030892535,5.07569923,105710.0,105700.0,0.0318]
[1750030893040,5.08236185,105710.0,105700.0,0.0318]
[1750030893268,5.07569924,105710.0,105700.0,0.0318]
[1750030893508,5.08236178,105710.0,105700.0,0.0318]
[1750030893723,5.07569923,105710.0,105700.0,0.0318]
[1750030893946,5.07569925,105710.0,105700.0,0.0318]
[1750030894165,5.06681583,105710.0,105700.0,0.0318]
[1750030894520,5.04353234,105710.0,105700.0,0.0318]
[1750030895126,5.05241552,105710.0,105700.0,0.0318]
[1750030895376,5.04353234,105710.0,105700.0,0.0318]
[1750030895609,5.05241546,105710.0,105700.0,0.0318]
[1750030895839,5.05241551,105710.0,105700.0,0.0318]
[1750030896068,5.0524154,105710.0,105700.0,0.0318]
[1750030896293,5.05241539,105710.0,105700.0,0.0318]
[1750030896534,5.04353234,105710.0,105700.0,0.0318]
[1750030896762,5.0524154,105710.0,105700.0,0.0318]
[1750030896982,4.79968156,105710.0,105700.0,0.0318]
[1750030897201,4.71241567,105710.0,105700.0,0.0318]
[1750030897425,4.71241564,105710.0,105700.0,0.0318]
[1750030897645,4.71241567,105710.0,105700.0,0.0318]
[1750030897872,4.70353234,105710.0,105700.0,0.0318]
[1750030898803,4.71241561,105710.0,105700.0,0.0318]
[1750030899030,4.71241563,105710.0,105700.0,0.0318]
[1750030899696,4.71250488,105710.0,105700.0,0.0318]
[1750030899968,4.70362157,105710.0,105700.0,0.0318]
[1750030900170,4.7125048,105710.0,105700.0,0.0318]
[1750030900414,5.04362157,105710.0,105700.0,0.0318]
[1750030900637,5.14865415,105710.0,105700.0,0.0318]
[1750030900857,5.13977079,105710.0,105700.0,0.0318]
[1750030901358,4.75378838,105710.0,105700.0,0.0318]
[1750030901613,5.15531686,105710.0,105700.0,0.0318]
[1750030901826,5.13977079,105710.0,105700.0,0.0318]
[1750030902345,5.14865409,105710.0,105700.0,0.0318]
[1750030902567,5.14865404,105710.0,105700.0,0.0318]
[1750030902777,5.14865403,105710.0,105700.0,0.0318]
[1750030902998,5.13977079,105710.0,105700.0,0.0318]
[1750030903431,5.14865403,105710.0,105700.0,0.0318]
[1750030903650,5.04362157,105710.0,105700.0,0.0318]
[1750030903887,0.3807767,105710.0,105700.0,0.0318]
[1750030904137,0.38077655,105710.0,105700.0,0.12804176]
[1750030904357,0.38077642,105710.0,105700.0,0.12804176]
[1750030904580,0.38077637,105710.0,105700.0,0.12804176]
[1750030905041,0.36989369,105710.0,105700.0,0.12804176]
[1750030905260,0.36789369,105710.0,105700.0,0.12804176]
[1750030905481,0.03677637,105710.0,105700.0,0.12804176]
[1750030905716,0.02789369,105710.0,105700.0,0.12804176]
[1750030905956,0.03677622,105710.0,105700.0,0.12804176]
[1750030906438,0.03677599,105710.0,105700.0,0.12804176]
[1750030906663,0.03677599,105710.0,105700.0,0.28280176]
[1750030906895,0.03677591,105710.0,105700.0,0.28280176]
[1750030907137,8.923e-05,105710.0,105700.0,0.77381686]
[1750030907357,8.923e-05,105710.0,105700.0,0.98195298]
[1750030907588,8.923e-05,105710.0,105700.0,0.99141344]
[1750030908280,8.923e-05,105710.0,105700.0,1.01969225]
[1750030908505,8.923e-05,105710.0,105700.0,1.02169225]
[1750030908976,8.923e-05,105710.0,105700.0,1.02915262]
[1750030909209,8.923e-05,105710.0,105700.0,1.01969234]
[1750030909436,8.923e-05,105710.0,105700.0,1.01123179]
[1750030909959,8.923e-05,105710.0,105700.0,0.62482646]
[1750030910154,8.923e-05,105710.0,105700.0,0.60790527]
[1750030910580,8.923e-05,105710.0,105700.0,0.61736591]
[1750030910815,8.923e-05,105710.0,105700.0,0.62136591]
[1750030911042,8.923e-05,105710.0,105700.0,1.01623179]
[1750030911949,8.923e-05,105710.0,105700.0,1.31503179]
[1750030912166,8.923e-05,105710.0,105700.0,1.30557115]
[1750030912379,8.923e-05,105710.0,105700.0,1.31503179]
[1750030913056,8.923e-05,105710.0,105700.0,1.30557115]
[1750030913271,8.923e-05,105710.0,105700.0,0.62772176]
[1750030914452,8.923e-05,105710.0,105700.0,0.63718249]
[1750030914890,8.923e-05,105710.0,105700.0,0.62772176]
[1750030915165,8.923e-05,105710.0,105700.0,0.63718249]
[1750030915408,8.923e-05,105710.0,105700.0,0.62772176]
[1750030915873,8.923e-05,105710.0,105700.0,0.43284176]
[1750030916116,8.923e-05,105710.0,105700.0,0.58756176]
[1750030917261,0.39495511,105710.0,105700.0,0.58756176]
[1750030918672,0.40383703,105710.0,105700.0,0.58756176]
[1750030919365,0.4038371,105710.0,105700.0,0.58756176]
[1750030919604,0.00897119,105710.0,105700.0,0.58756176]
[1750030919803,8.923e-05,105710.0,105700.0,0.58756176]
[1750030920487,8.923e-05,105710.0,105700.0,0.67397339]
[1750030921185,8.923e-05,105710.0,105700.0,1.26751466]
[1750030921404,8.923e-05,105710.0,105700.0,1.26751475]
[1750030921676,8.923e-05,105710.0,105700.0,1.0783]
[1750030921919,8.923e-05,105710.0,105700.0,0.69289476]
[1750030922147,8.923e-05,105710.0,105700.0,0.68343412]
[1750030922369,8.923e-05,105710.0,105700.0,0.60648313]
[1750030922594,8.923e-05,105710.0,105700.0,0.78623724]
[1750030922815,8.923e-05,105710.0,105700.0,0.59702249]
[1750030923060,8.923e-05,105710.0,105700.0,1.20948424]
[1750030923314,8.923e-05,105710.0,105700.0,1.30563346]
[1750030923541,8.923e-05,105710.0,105700.0,1.33391227]
[1750030924005,8.923e-05,105710.0,105700.0,1.23563346]
[1750030925682,8.923e-05,105710.0,105700.0,1.22617335]
[1750030925900,8.923e-05,105710.0,105700.0,1.12056376]
[1750030926134,8.923e-05,105710.0,105700.0,0.51756176]
[1750030926352,8.923e-05,105710.0,105700.0,0.52702249]
[1750030926579,8.923e-05,105710.0,105700.0,0.7256977]
[1750030926802,8.923e-05,105710.0,105700.0,0.73515825]